Workbook

Sheet Main
A1: Genesys Co-browse sizing calculator
A5: Maximum number of concurrent Co-browse sessions | F5: 1500
A6: Website complexity | F6: Average website complexity (genesys.com)
A7: Enable WebSocket connections | F7: TRUE
A9: Estimated load
A13: Estimated average requests per second | G13: =AvgTotalRps -> 3000
A14: Estimated peak requests per second | G14: =MaxTotalRps -> 3219
A16: Recommended deployment options
A19: CPU cores per node | F19: 8 CPU
A21: Minimum Co-browse nodes count | G21: =TotalMinimalNodes -> 2
A22: Recommended Co-browse nodes count | G22: =TotalNodesCount -> 2
A24: Note: | B24: 1. Estimations are valid for both external and embedded Cassandra.
B25: 2. Minimum number of nodes if using embedded Cassandra is 3.
A26: Data transfer estimation
A30: Type | B30: 1 minute | C30: 1 hour | D30: Daily | E30: Weekly | F30: Monthly | G30: Year
A31: Clients
A32: to server, Gb | B32: =PerMinuteClientIn -> 0.47 | C32: =B32*60 -> 28.20 | D32: =C32*24 -> 676.80 | E32: =D32*7 -> 4,737.60 | F32: =G32/12 -> 20,586.00 | G32: =D32*365 -> 247,032.00
A33: from server, Gb | B33: =PerMinuteClientOut -> 0.19 | C33: =B33*60 -> 11.40 | D33: =C33*24 -> 273.60 | E33: =D33*7 -> 1,915.20 | F33: =G33/12 -> 8,322.00 | G33: =D33*365 -> 99,864.00
A35: Agents
A36: to server, Gb | B36: =PerMinuteAgentsIn -> 0.17 | C36: =B36*60 -> 10.20 | D36: =C36*24 -> 244.80 | E36: =D36*7 -> 1,713.60 | F36: =G36/12 -> 7,446.00 | G36: =D36*365 -> 89,352.00
A37: from server, Gb | B37: =PerMinuteAgentsOut -> 0.51 | C37: =B37*60 -> 30.60 | D37: =C37*24 -> 734.40 | E37: =D37*7 -> 5,140.80 | F37: =G37/12 -> 22,338.00 | G37: =D37*365 -> 268,056.00

Sheet Server profiles
A1: Recommended Hardware Configuration
A3: CPU | C3: multicore (8+) CPU
A4: RAM | C4: 8Gb
A6: Recommended Software Configuration
A7: OS version | C7: Linux 5 x64, Windows Server 2008R2 x64
A8: Java version | C8: Java version 1.7, 64-Bit Server VM
A10: Java options
A11: Initial heap size (Xms) | C11: 4Gb
A12: Maximum heap size (Xmx) | C12: 4Gb

Sheet Load Calculation (hidden)
A1: Long polling | E1: Web socket
A2: Selected avg RPS | B2: =VLOOKUP(SiteType,Data!$A$2:$B$3,2,FALSE) -> 10 | E2: Selected avg RPS | F2: =VLOOKUP(SiteType,Data!A2:C3,3,FALSE) -> 7
A4: Selected sessions | B4: =IF(WebsocketEnabled,LPSessionsRatio*AvgSessions,AvgSessions) -> 300 | E4: Selected sessions | F4: =AvgSessions-LPAvgSessions -> 1200
A6: Avg total RPS | B6: =AvgRps*LPAvgSessions -> 3000 | E6: Avg total RPS | F6: =WSAvgRps*WSAvgSessions -> 8400
A7: Avg total variation | B7: =AvgTotalRps -> 3000 | E7: Avg total variation | F7: =WSAvgTotalRps -> 8400
A8: Max total RPS | B8: =AvgTotalRps+4*SQRT(AvgTotalRps) -> 3219.089023 | E8: Max total RPS | F8: =WSAvgTotalRps+4*SQRT(WSAvgTotalRps) -> 8766.606056
A10: Selected config
A11: Avg single rps | B11: =VLOOKUP(CpuCores,Data!A6:B7,2,FALSE) -> 8000 | E11: Avg single rps | F11: =VLOOKUP(CpuCores,Data!A6:E7,4,FALSE) -> 10000
A12: Max single rps | B12: =VLOOKUP(CpuCores,Data!A6:C7,3,FALSE) -> 12000 | E12: Max single rps | F12: =VLOOKUP(CpuCores,Data!A6:E7,5,FALSE) -> 12000
A15: Estimated minimal nodes | B15: =INT(AvgTotalRps/MaxSingleRps)+IF(MOD(AvgTotalRps,MaxSingleRps)/MaxSingleRps>ElasticFactor,1,0) -> 0 | E15: Estimated minimal nodes | F15: =INT(WSAvgTotalRps/WSMaxSingleRps)+IF(MOD(WSAvgTotalRps,WSMaxSingleRps)/WSMaxSingleRps>ElasticFactor,1,0) -> 1
A16: Estimated peak nodes | B16: =INT(MaxTotalRps/MaxSingleRps)+IF(MOD(MaxTotalRps,MaxSingleRps)/MaxSingleRps>ElasticFactor,1,0) -> 1 | E16: Estimated peak nodes | F16: =INT(WSMaxTotalRps/WSMaxSingleRps)+IF(MOD(WSMaxTotalRps,WSMaxSingleRps)/WSMaxSingleRps>ElasticFactor,1,0) -> 1
A17: Estimated avg nodes | B17: =INT(AvgTotalRps/AvgSingleRps)+IF(MOD(AvgTotalRps,AvgSingleRps)/AvgSingleRps>ElasticFactor,1,0) -> 1 | E17: Estimated avg nodes | F17: =INT(WSAvgTotalRps/WSAvgSingleRps)+IF(MOD(WSAvgTotalRps,WSAvgSingleRps)/WSAvgSingleRps>ElasticFactor,1,0) -> 1
A18: Estimated recommended nodes | B18: =MAX(EstimatedAvgNodes,EstimatedPeakNodes) -> 1 | E18: Estimated recommended nodes | F18: =MAX(WSEstimatedAvgNodes,WSEstimatedPeakNodes) -> 1
A22: Total
A24: Estimated minimal nodes | B24: =MAX(EstimatedMinimalNodes+WSEstimatedMinimalNodes,MinimalNodes) -> 2
A25: Estimated peak nodes | B25: =MAX(EstimatedPeakNodes+WSEstimatedPeakNodes,AvgMinimalNodes) -> 2
A26: Estimated avg nodes | B26: =MAX(EstimatedAvgNodes+WSEstimatedAvgNodes,AvgMinimalNodes) -> 2
A27: Estimated recommended nodes | B27: =MAX(TotalAvgNodes,TotalPeakNodes) -> 2
A30: Data transfer
A32: Traffic per minute, Mb | B32: Clients in | C32: Clients out | D32: Agents in | E32: Agents out
A33: LP | B33: =VLOOKUP(SiteType,Data!A22:B23,2,FALSE) -> 0.45 | C33: =VLOOKUP(SiteType,Data!A22:E23,3,FALSE) -> 0.24 | D33: =VLOOKUP(SiteType,Data!A22:E23,4,FALSE) -> 0.363 | E33: =VLOOKUP(SiteType,Data!A22:E23,5,FALSE) -> 0.63
A34: WS | B34: =VLOOKUP(SiteType,Data!A22:J23,7,FALSE) -> 0.292 | C34: =VLOOKUP(SiteType,Data!A22:J23,8,FALSE) -> 0.104 | D34: =VLOOKUP(SiteType,Data!A22:J23,9,FALSE) -> 0.056 | E34: =VLOOKUP(SiteType,Data!A22:J23,10,FALSE) -> 0.277
A36: Total transfer, Gb | B36: =ROUND((B33*LPAvgSessions + B34*WSAvgSessions)/1024, 2) -> 0.47 | C36: =ROUND((C33*LPAvgSessions + C34*WSAvgSessions)/1024, 2) -> 0.19 | D36: =ROUND((D33*LPAvgSessions + D34*WSAvgSessions)/1024, 2) -> 0.17 | E36: =ROUND((E33*LPAvgSessions + E34*WSAvgSessions)/1024, 2) -> 0.51

Sheet Data (hidden)
A1: Page weight | B1: Avg RPS, LP | C1: Avg RPS, WS
A2: Average website complexity (genesys.com) | B2: 10 | C2: 7
A3: High website complexity (amazon.com) | B3: 25 | C3: 15
A5: Load limits/CPU | B5: Avg RPS per server, LP | C5: Max RPS per server, LP | D5: Avg RPS per server, WS | E5: Max RPS per server, WS
A6: 4 CPU | B6: 4000 | C6: 6000 | D6: 8000 | E6: 10000
A7: 8 CPU | B7: 8000 | C7: 12000 | D7: 10000 | E7: 12000
A8: cpu load | B8: 75% | C8: 100% | D8: 75% | E8: 100%
A10: Scalability factor | B10: 1
A11: Elastic load | B11: 0.25
A12: WebSocket part | B12: 0.8
A13: LP part | B13: =0.2 -> 0.2 | C13: should be (1 - ws part), do not use equations here due to CB-3720
A16: Minimum nodes count | B16: 2
A17: Minimum recommended nodes count | B17: 2
A19: Data transfer | B19: Long Polling | G19: WebSocket
B20: Clients | D20: Agents | G20: Clients | I20: Agents
B21: to server | C21: from server | D21: to server | E21: from server | G21: to server | H21: from server | I21: to server | J21: from server
A22: Average website complexity (genesys.com) | B22: 0.45 | C22: 0.24 | D22: 0.363 | E22: 0.63 | G22: 0.292 | H22: 0.104 | I22: 0.056 | J22: 0.277
A23: High website complexity (amazon.com) | B23: 3.7 | C23: 2.18 | D23: 1.412 | E23: 4.54 | G23: 2.004 | H23: 0.282 | I23: 0.084 | J23: 1.875
